fUSD/lending_fUSD_20240121
["ID","MTS","AMOUNT","RATE_DAILY","PERIOD"]
[312436323,1705874061686,205.71791086,0.0001,2]
[312436325,1705874321357,5193.19967638,0.0001,2]
[312436326,1705874337342,3077.28312281,0.0001,2]
[312436336,1705875033036,-655.60712406,0.00020072,2]
[312436337,1705875033091,-4562.7770563,0.00020072,2]
[312436338,1705875033101,-279.68,0.00020074,2]
[312436339,1705875033111,-192.53961301,0.00020921,2]
[312436340,1705875033122,-186.0,0.00021622,2]
[312436341,1705875033131,-500.0,0.00021773,2]
[312436342,1705875033141,-200.0,0.00021798,2]
[312436343,1705875033152,-568.66,0.00021853,2]
[312436344,1705875033162,-500.0,0.00021909,2]
[312436345,1705875033171,-250.0,0.00021933,2]
[312436346,1705875033181,-1221.11,0.00021938,2]
[312436347,1705875033190,-150.0,0.00021961,2]
[312436348,1705875033200,-1495.39,0.00021962,2]
[312436349,1705875033210,-159.35,0.00021991,2]
[312436350,1705875033219,-150.0,0.00022,2]
[312436351,1705875033229,-150.0,0.00022,2]
[312436352,1705875033239,-211.00410547,0.00022,2]
[312436353,1705875033249,-3168.51,0.00022,2]
[312436354,1705875033258,-176.39,0.00022,2]
[312436355,1705875033269,-1000.0,0.00022217,2]
[312436356,1705875033279,-158.12,0.00022301,2]
[312436357,1705875033288,-150.99,0.00022301,2]
[312436358,1705875033299,-9564.74,0.00022301,2]
[312436359,1705875033308,-2080.3,0.00022301,2]
[312436360,1705875033318,-150.99,0.00022301,2]
[312436361,1705875033328,-279.68,0.00022338,2]
[312436362,1705875033338,-7513.35583929,0.00022432,2]
[312436363,1705875033348,-22733.1358,0.00022442,2]
[312436364,1705875033357,-176.39,0.00022548,2]
[312436365,1705875033368,-39839.61546275,0.0002277,2]
[312436366,1705875033381,-1065.54810808,0.0002277,2]
[312436367,1705875033394,-7304.63734467,0.0002277,2]
[312436368,1705875033405,-461.43417062,0.0002277,2]
[312436369,1705875033417,-291.09812629,0.0002277,2]
[312436372,1705875033470,-2330.60549981,0.0002277,2]
[312436373,1705875033489,-1178.97298307,0.00020071,2]
[312436374,1705875033501,-8959.67981612,0.0002277,2]
[312436375,1705875033515,-5434.27358325,0.0002277,2]
[312436376,1705875033527,-298.38963629,0.0002277,2]
[312436377,1705875033607,-387.61028032,0.0002277,2]
[312436378,1705875033619,-354.11977769,0.0002277,2]
[312436379,1705875033630,-619.10457445,0.0002277,2]
[312436380,1705875033642,-1158.03807734,0.0002277,2]
[312436381,1705875033653,-395.76320725,0.0002277,2]
[312436382,1705875033678,-6668.52324087,0.0002277,2]
[312436383,1705875033689,-2232.16166621,0.0002277,2]
[312436384,1705875033701,-2013.91252975,0.0002277,2]
[312436385,1705875033714,-726.75012479,0.0002277,2]
[312436386,1705875033727,-1341.53946258,0.0002277,2]
[312436387,1705875033744,-1428.89313008,0.0002277,2]
[312436388,1705875033756,-2147.15410892,0.0002277,2]
[312436392,1705875037850,-4902.54171779,0.0002277,2]
[312436393,1705875037862,-8182.79999999,0.0002277,2]
[312436394,1705875037878,-4060.63298702,0.0002277,2]
[312436395,1705875037892,-403.09841461,0.0002277,2]
[312436396,1705875037924,-59017.33788259,0.0002277,2]
[312436397,1705875037936,-22379.5281148,0.0002277,2]
[312436398,1705875037948,-4553.20895507,0.0002277,2]
[312436399,1705875037958,-15174.58277968,0.00022897,2]
[312436400,1705875037969,-409.87754981,0.00022899,2]
[312436401,1705875037979,-19878.0226,0.000229,2]
[312436402,1705875037989,-151.8177774,0.00022925,2]
[312436403,1705875038000,-5253.23132656,0.00022925,2]
[312436404,1705875038010,-8338.76130914,0.00022925,2]
[312436405,1705875038019,-3078.00823661,0.0002298,2]
[312436406,1705875038043,-255555.34348197,0.0002298,2]
[312436407,1705875038052,-499.99,0.0002298,2]
[312436408,1705875038062,-165.92298531,0.00022996,2]
[312436409,1705875038072,-2444.17503614,0.00022996,2]
[312436410,1705875038081,-183.97179688,0.00022996,2]
[312436411,1705875038090,-198.93815682,0.00022996,2]
[312436412,1705875038100,-400.0,0.00022998,2]
[312436413,1705875038109,-202.57156383,0.00022998,2]
[312436414,1705875038118,-253.92586632,0.00022998,2]
[312436415,1705875038128,-421.02363331,0.00022998,2]
[312436416,1705875038137,-155.0,0.00022998,2]
[312436417,1705875038147,-210.5865358,0.00022998,2]
[312436418,1705875038156,-486.28507678,0.00022998,2]
[312436419,1705875038166,-404.12442134,0.00022998,2]
[312436420,1705875038176,-1136.01929882,0.00022998,2]
[312436421,1705875038185,-155.0,0.00022998,2]
[312436422,1705875038195,-207.78272895,0.00022998,2]
[312436423,1705875038204,-2780.01755274,0.00022998,2]
[312436425,1705875038213,-1041.66122871,0.00022998,2]
[312436427,1705875038223,-151.0122,0.00022998,2]
[312436429,1705875038232,-151.0122,0.00022998,2]
[312436432,1705875038242,-151.0122,0.00022998,2]
[312436434,1705875038252,-151.0122,0.00022998,2]
[312436438,1705875038262,-151.0122,0.00022998,2]
[312436441,1705875038271,-151.0122,0.00022998,2]
[312436444,1705875038281,-151.0122,0.00022998,2]
[312436446,1705875038290,-151.0122,0.00022998,2]
[312436448,1705875038300,-151.0122,0.00022998,2]
[312436450,1705875038309,-151.0122,0.00022998,2]
[312436452,1705875038319,-151.0122,0.00022998,2]
[312436454,1705875038328,-151.0122,0.00022998,2]
[312436456,1705875038337,-151.0122,0.00022998,2]
[312436458,1705875038347,-151.0122,0.00022998,2]
[312436460,1705875038356,-151.0122,0.00022998,2]
[312436462,1705875038366,-151.0122,0.00022998,2]
[312436464,1705875038375,-151.0122,0.00022998,2]
[312436466,1705875038384,-151.0122,0.00022998,2]
[312436468,1705875038393,-151.0122,0.00022998,2]
[312436470,1705875038403,-500.0,0.00022999,2]
[312436472,1705875038412,-150.0,0.00022999,2]
[312436474,1705875038421,-150.0,0.00022999,2]
[312436476,1705875038430,-2818275.77111978,0.00023,2]
[312436478,1705875038442,-277880.0554256,0.00023,2]
[312436481,1705875038453,-354584.75924408,0.00023,2]
[312436483,1705875038465,-940.94897245,0.00023,2]
[312436712,1705875040786,-466.1419,0.0002288,2]
[312436714,1705875040796,-306.96166941,0.00023,2]
[312436759,1705875041209,-757.91521654,0.00023,2]
[312436905,1705875045720,-1176.43611481,0.00022999,2]
[312436906,1705875045731,-57383.15337901,0.00023,2]
[312436907,1705875045839,-2824.72591847,0.00022999,2]
[312436908,1705875045849,-76982.5883879,0.00023,2]
[312436909,1705875045861,-2495.0566057,0.00023,2]
[312436910,1705875046524,-436.34852955,0.00023,2]
[312436911,1705875046634,-456.002,0.00023,2]
[312436912,1705875046646,-2538.04431874,0.00023,2]
[312436913,1705875046659,-716.32220065,0.00023,2]
[312436919,1705875350683,290.39,0.00021075,2]
[312436920,1705875638864,7429.46081831,0.00021075,2]
[312436921,1705875843916,297.48,0.0001992,2]
[312436946,1705876231888,-186.0,0.00021687,2]
[312436947,1705876231900,-237.04,0.00021737,2]
[312436948,1705876231913,-6778.48431841,0.00021797,2]
[312436949,1705876231924,-150.0,0.00021798,2]
[312436950,1705876231935,-5446.81147252,0.00021798,2]
[312436951,1705876231947,-2899.11846563,0.00021808,2]
[312436952,1705876231996,-512.69287336,0.00021808,2]
[312436953,1705876232104,-1719.80804088,0.00021808,2]
[312436958,1705876237906,-18748.38062013,0.00021808,2]
[312436959,1705876237925,-940.39,0.00021843,2]
[312436960,1705876237966,-1000.0,0.00021853,2]
[312436961,1705876237981,-250.0,0.00021918,2]
[312436962,1705876237996,-165.51,0.00021923,2]
[312436963,1705876238010,-499.99,0.00021923,2]
[312436964,1705876238024,-237.24,0.00021923,2]
[312436965,1705876238038,-164.97,0.00021924,2]
[312436966,1705876238051,-176.39,0.00021999,2]
[312436967,1705876238068,-150.0,0.00022,2]
[312436968,1705876238083,-155.89,0.00022018,2]
[312436969,1705876238097,-157.58,0.0002213,2]
[312436970,1705876238113,-297.48,0.00022183,2]
[312436971,1705876238127,-1000.0,0.00022454,2]
[312436972,1705876238141,-176.39,0.00022547,2]
[312436973,1705876238155,-150.0,0.00022549,2]
[312436974,1705876238168,-247.24074097,0.00022769,2]
[312436975,1705876238182,-279.3351,0.00022899,2]
[312436976,1705876238197,-3582.3887,0.000229,2]
[312436977,1705876238210,-7444.548,0.000229,2]
[312436978,1705876238224,-171.78762555,0.000229,2]
[312436979,1705876238237,-1217.08,0.000229,2]
[312436980,1705876238250,-1378.70652105,0.000229,2]
[312436981,1705876238264,-2385.89529422,0.00022911,2]
[312436982,1705876238282,-206.27904587,0.00022925,2]
[312436983,1705876238295,-190.0931973,0.00022989,2]
[312436986,1705876238309,-170.93541987,0.00022998,2]
[312436988,1705876238321,-1050.74142845,0.00022998,2]
[312436990,1705876238334,-238.30909861,0.00022998,2]
[312436992,1705876238348,-161.0122,0.00022998,2]
[312436995,1705876238360,-161.0122,0.00022998,2]
[312436997,1705876238374,-161.0122,0.00022998,2]
[312437000,1705876238387,-161.0122,0.00022998,2]
[312437002,1705876238399,-161.0122,0.00022998,2]
[312437004,1705876238412,-161.0122,0.00022998,2]
[312437006,1705876238424,-161.0122,0.00022998,2]
[312437009,1705876238436,-161.0122,0.00022998,2]
[312437011,1705876238449,-168.0122,0.00022998,2]
[312437013,1705876238461,-198.24113004,0.00022999,2]
[312437016,1705876238474,-314.39121002,0.00022999,2]
[312437018,1705876238486,-374.81188408,0.00022999,2]
[312437020,1705876238498,-340.45017893,0.00022999,2]
[312437022,1705876238511,-1773.10768545,0.00022999,2]
[312437025,1705876238524,-197.54618209,0.00022999,2]
[312437027,1705876238536,-205.15144742,0.00022999,2]
[312437029,1705876238548,-230186.69511555,0.00022999,2]
[312437032,1705876238564,-354584.75924408,0.00022999,2]
[312437036,1705876238596,-4277.4,0.00022999,2]
[312437046,1705876238678,-1221.04610664,0.00022999,2]
[312437282,1705876240821,-1292.76814614,0.00022999,2]
[312437286,1705876240850,-348.18,0.00022999,2]
[312437289,1705876240864,-343.2739066,0.00022999,2]
[312437291,1705876240878,-723.77245087,0.00022999,2]
[312437316,1705876241113,-46450.33165617,0.00022999,2]
[312437390,1705876241797,-290248.06807829,0.00023,2]
[312437393,1705876241823,-2000.0,0.00023,2]
[312437397,1705876241853,-200.0,0.00023,2]
[312437400,1705876241872,-159.35,0.00023025,2]
[312437402,1705876241882,-176.39,0.00023095,2]
[312437404,1705876241891,-2000.0,0.0002323,2]
[312437406,1705876241901,-200.0,0.0002323,2]
[312437408,1705876241911,-155.89,0.00023399,2]
[312437410,1705876241921,-2000.0,0.00023462,2]
[312437412,1705876241930,-200.0,0.00023462,2]
[312437414,1705876241940,-940.39,0.00023487,2]
[312437416,1705876241949,-800.0,0.00023616,2]
[312437418,1705876241958,-176.39,0.00023643,2]
[312437420,1705876241970,-2000.0,0.00023697,2]
[312437422,1705876241980,-2000.0,0.00023934,2]
[312437424,1705876241991,-5000.0,0.00024,2]
[312437426,1705876242001,-159.35,0.00024059,2]
[312437428,1705876242010,-176.39,0.00024191,2]
[312437430,1705876242019,-157.58,0.00024212,2]
[312437432,1705876242028,-167.0,0.00024297,2]
[312437434,1705876242038,-179.52,0.00024297,2]
[312437437,1705876242048,-297.48,0.00024447,2]
[312437439,1705876242057,-1000.0,0.00024584,2]
[312437441,1705876242066,-250.0,0.00024658,2]
[312437443,1705876242076,-2385.8952942,0.00024704,2]
[312437445,1705876242085,-254.19329558,0.00024739,2]
[312437447,1705876242094,-155.89,0.00024779,2]
[312437449,1705876242104,-151.81777713,0.000249,2]
[312437451,1705876242113,-1249.5542374,0.00025,2]
[312437452,1705876242122,-167.46550336,0.00025,2]
[312437453,1705876242131,-350.0,0.00025,3]
[312437454,1705876242140,-159.35,0.00025093,2]
[312437455,1705876242150,-940.39,0.00025131,2]
[312437456,1705876242159,-167.0,0.00025299,2]
[312437458,1705876242169,-3022.0,0.000257,2]
[312437459,1705876242179,-26167.0,0.000257,2]
[312437460,1705876242188,-151.81777713,0.00025703,2]
[312437461,1705876242199,-1378.706521,0.0002572,2]
[312437462,1705876242208,-159.35,0.00026128,2]
[312437463,1705876242218,-155.89,0.0002616,2]
[312437464,1705876242228,-157.58,0.00026293,2]
[312437465,1705876242237,-167.0,0.00026302,2]
[312437466,1705876242247,-193.22028902,0.00026475,2]
[312437467,1705876242257,-2385.8952942,0.00026498,2]
[312437468,1705876242266,-151.81777713,0.00026506,2]
[312437469,1705876242275,-5312.13,0.00026575,2]
[312437470,1705876242285,-297.48,0.00026711,2]
[312437471,1705876242295,-940.39,0.00026774,2]
[312437472,1705876242304,-400.0,0.00027,3]
[312437473,1705876242314,-167.0,0.00027304,2]
[312437474,1705876242324,-151.81777713,0.0002731,2]
[312437476,1705876242333,-1000.0,0.00027316,2]
[312437478,1705876242343,-155.0,0.00027397,2]
[312437480,1705876242353,-150.0,0.00027397,2]
[312437482,1705876242362,-151.81777713,0.00028113,2]
[312437484,1705876242372,-2385.8952942,0.00028291,2]
[312437486,1705876242382,-179.52,0.00028307,2]
[312437488,1705876242391,-167.0,0.00028307,2]
[312437489,1705876242400,-940.39,0.00028418,2]
[312437490,1705876242410,-1378.706521,0.0002854,4]
[312437491,1705876242419,-155.0,0.00028767,2]
[312437492,1705876242429,-151.81777713,0.00028916,2]
[312437493,1705876242438,-297.48,0.00028975,2]
[312437494,1705876242449,-450.0,0.00029,3]
[312437495,1705876242458,-12431.29,0.00029009,2]
[312437496,1705876242467,-151.81777713,0.00029719,2]
[312437497,1705876242477,-175.58250697,0.000298,2]
[312437498,1705876242487,-1010.4315,0.00029899,2]
[312437499,1705876242496,-2359.04794661,0.0003,2]
[312437500,1705876242506,-155.0,0.0003,2]
[312437501,1705876242515,-2333.33333,0.0003,2]
[312437502,1705876242525,-1000.0,0.00030047,2]
[312437503,1705876242534,-940.39,0.00030062,2]
[312437504,1705876242543,-2385.8952942,0.00030085,2]
[312437505,1705876242552,-153.84,0.00030137,2]
[312437506,1705876242562,-155.0,0.00030137,2]
[312437507,1705876242571,-237.04,0.00030432,2]
[312437508,1705876242581,-151.0122,0.00030498,4]
[312437509,1705876242590,-151.81777713,0.00030523,2]
[312437510,1705876242600,-500.0,0.00031,3]
[312437511,1705876242610,-1000.0,0.00031161,2]
[312437512,1705876242619,-297.48,0.00031239,2]
[312437513,1705876242629,-151.81777713,0.00031326,2]
[312437514,1705876242638,-1378.706521,0.0003136,5]
[312437515,1705876242647,-151.0122,0.00031498,4]
[312437516,1705876242658,-1000.0,0.000315,2]
[312437518,1705876242667,-161.55,0.00031507,2]
[312437519,1705876242677,-155.0,0.00031507,2]
[312437521,1705876242686,-206.27904587,0.00031778,4]
[312437523,1705876242695,-151.0122,0.00031798,4]
[312437525,1705876242704,-500.0,0.00031799,2]
[312437527,1705876242714,-269464.261347,0.000318,3]
[312437529,1705876242723,-2385.8952942,0.00031878,3]
[312437530,1705876242733,-151.81777713,0.00032129,2]
[312437532,1705876242742,-151.0122,0.00032198,4]
[312437534,1705876242751,-500.0,0.00032347,2]
[312437536,1705876242760,-151.0122,0.00032498,4]
[312437538,1705876242770,-1000.0,0.00032779,2]
[312437540,1705876242779,-151.0122,0.00032798,4]
[312437542,1705876242788,-250.0,0.00032876,2]
[312437544,1705876242798,-153.84,0.00032877,2]
[312437545,1705876242808,-656.01,0.00032877,15]
[312437547,1705876242817,-8671.36,0.0003288,2]
[312437549,1705876242826,-8671.36,0.0003288,2]
[312437551,1705876242835,-8671.36,0.0003288,2]
[312437552,1705876242844,-8671.36,0.0003288,2]
[312437554,1705876242854,-8671.36,0.0003288,2]
[312437556,1705876242863,-500.0,0.00032895,2]
[312437558,1705876242872,-151.0122,0.00032898,8]
[312437559,1705876242882,-151.81777713,0.00032932,2]
[312437561,1705876242891,-151.0122,0.00032998,8]
[312437563,1705876242900,-7564.17530368,0.00033,2]
[312437564,1705876242910,-2000.0,0.00033,5]
[312437566,1705876242921,-550.0,0.00033,3]
[312437568,1705876242931,-500.0,0.00033013,7]
[312437569,1705876242941,-151.0122,0.00033098,4]
[312437570,1705876242951,-750.0,0.0003315,7]
[312437571,1705876242961,-151.0122,0.00033198,4]
[312437572,1705876242970,-1000.0,0.00033287,7]
[312437573,1705876242979,-151.0122,0.00033298,4]
[312437574,1705876242990,-151.0122,0.00033398,4]
[312437575,1705876243000,-1250.0,0.00033424,7]
[312437576,1705876243009,-500.0,0.00033443,2]
[312437577,1705876243018,-151.0122,0.00033498,8]
[312437578,1705876243028,-297.48,0.00033503,2]
[312437579,1705876243038,-2385.8952942,0.00033672,5]
[312437580,1705876243048,-560.56555998,0.00033729,4]
[312437581,1705876243058,-151.81777713,0.00033735,2]
[312437582,1705876243068,-3502.1542177,0.000339,2]
[312437583,1705876243079,-198.93815682,0.000339,2]
[312437584,1705876243088,-1435.99213829,0.000339,2]
[312437585,1705876243098,-500.0,0.00033991,2]
[312437586,1705876243107,-150.0,0.00033999,2]
[312437587,1705876243117,-150.0,0.00033999,2]
[312437588,1705876243126,-150.0,0.00033999,2]
[312437589,1705876243135,-150.0,0.00033999,2]
[312437590,1705876243145,-708410.47838228,0.00034,7]
[312437591,1705876243155,-500.0,0.00034,2]
[312437592,1705876243165,-1000.0,0.00034,4]
[312437593,1705876243175,-18076.58318351,0.00034,2]
[312437594,1705876243185,-1087054.95540734,0.00034,2]
[312437595,1705876243197,-1540291.29199215,0.00034,2]
[312437596,1705876243207,-1378.706521,0.00034179,6]
[312437597,1705876243218,-500.0,0.000342,2]
[312437598,1705876243227,-666.0,0.00034246,2]
[312437599,1705876243237,-16310.06383397,0.000344,2]
[312437600,1705876243247,-151.0122,0.00034498,6]
[312437601,1705876243256,-151.81777713,0.00034539,2]
[312437602,1705876243266,-500.0,0.00034539,2]
[312437603,1705876243275,-150.0,0.00034666,2]
[312437604,1705876243284,-151.0122,0.00034798,6]
[312437605,1705876243294,-50000.0,0.00035,5]
[312437606,1705876243305,-14328.56455902,0.00035,2]
[312437607,1705876243315,-600.0,0.00035,3]
[312437609,1705876243325,-2333.33333,0.00035,2]
[312437611,1705876243335,-500.0,0.00035087,2]
[312437612,1705876243344,-151.0122,0.00035198,6]
[312437613,1705876243353,-151.81777713,0.00035342,2]
[312437614,1705876243363,-204.0,0.00035355,2]
[312437615,1705876243373,-692.0,0.00035412,5]
[312437616,1705876243382,-2385.8952942,0.00035465,8]
[312437617,1705876243393,-151.0122,0.00035498,6]
[312437618,1705876243404,-153.84,0.00035616,2]
[312437619,1705876243413,-456.54,0.00035635,2]
[312437620,1705876243422,-150.0,0.00035666,2]
[312437621,1705876243431,-172.72,0.000357,7]
[312437622,1705876243441,-160.78,0.000357,7]
[312437623,1705876243451,-518.75,0.000357,3]
[312437624,1705876243462,-518.75,0.000357,3]
[312437625,1705876243473,-518.75,0.000357,3]
[312437626,1705876243484,-518.75,0.000357,3]
[312437627,1705876243493,-518.75,0.000357,3]
[312437628,1705876243503,-518.75,0.000357,3]
[312437629,1705876243512,-518.75,0.000357,3]
[312437630,1705876243524,-518.75,0.000357,3]
[312437631,1705876243534,-518.75,0.000357,3]
[312437632,1705876243544,-518.75,0.000357,3]
[312437633,1705876243554,-518.75,0.000357,3]
[312437634,1705876243564,-518.75,0.000357,3]
[312437635,1705876243574,-518.75,0.000357,3]
[312437636,1705876243584,-518.75,0.000357,3]
[312437637,1705876243594,-518.75,0.000357,3]
[312437638,1705876243604,-518.75,0.000357,3]
[312437639,1705876243615,-518.75,0.000357,3]
[312437640,1705876243627,-518.75,0.000357,3]
[312437641,1705876243636,-518.75,0.000357,3]
[312437642,1705876243647,-518.75,0.000357,3]
[312437643,1705876243658,-509.32139664,0.00035745,8]
[312437644,1705876243670,-509.32139664,0.00035745,8]
[312437645,1705876243679,-509.32139664,0.00035745,8]
[312437646,1705876243689,-509.32139664,0.00035745,8]
[312437647,1705876243700,-297.48,0.00035767,2]
[312437648,1705876243710,-151.0122,0.00035798,6]
[312437649,1705876243720,-50000.0,0.00036,6]
[312437650,1705876243731,-185.0,0.00036,2]
[312437651,1705876243741,-151.81777713,0.00036145,2]
[312437652,1705876243750,-151.0122,0.00036198,6]
[312437653,1705876243760,-151.0122,0.00036498,6]
[312437654,1705876243770,-656.01,0.00036613,15]
[312437655,1705876243779,-150.0,0.00036666,2]
[312437656,1705876243788,-10000.0,0.00036683,2]
[312437657,1705876243798,-9000.0,0.00036745,2]
[312437658,1705876243807,-250.0,0.00036745,30]
[312437659,1705876243817,-150.0,0.00036745,30]
[312437660,1705876243827,-151.0122,0.00036798,6]
[312437661,1705876243836,-151.81777713,0.00036948,2]
[312437662,1705876243847,-2276.22,0.00036976,10]
[312437663,1705876243856,-1896.85,0.00036976,10]
[312437664,1705876243865,-500.0,0.00036986,70]
[312437665,1705876243875,-500.0,0.00036986,71]
[312437666,1705876243884,-500.0,0.00036986,72]
[312437667,1705876243893,-500.0,0.00036986,73]
[312437668,1705876243903,-592.76,0.00036986,74]
[312437669,1705876243915,-500.0,0.00036986,70]
[312437670,1705876243924,-1378.706521,0.00036999,8]
[312437671,1705876243933,-50000.0,0.00037,7]
[312437672,1705876243942,-500.0,0.00037,2]
[312437673,1705876243953,-5922.1387384,0.00037013,11]
[312437674,1705876243963,-200.95609863,0.00037013,10]
[312437675,1705876243972,-19134.31240778,0.00037013,11]
[312437676,1705876243981,-2921.37655919,0.00037013,11]
[312437677,1705876243993,-180.86048876,0.00037013,5]
[312437678,1705876244004,-151.0122,0.00037198,6]
[312437679,1705876244014,-2385.8952942,0.00037259,10]
[312437680,1705876244023,-151.0122,0.00037498,8]
[312437681,1705876244033,-500.0,0.00037681,2]
[312437682,1705876244122,-500.0,0.00037681,2]
[312437683,1705876244131,-500.0,0.00037681,2]
[312437684,1705876244141,-500.0,0.00037681,2]
[312437685,1705876244151,-500.0,0.00037681,2]
[312437686,1705876244159,-500.0,0.00037681,2]
[312437687,1705876244169,-500.0,0.00037681,2]
[312437688,1705876244179,-500.0,0.00037681,2]
[312437689,1705876244188,-500.0,0.00037681,2]
[312437690,1705876244198,-500.0,0.00037681,2]
[312437691,1705876244207,-500.0,0.00037681,2]
[312437692,1705876244217,-500.0,0.00037681,2]
[312437693,1705876244227,-500.0,0.00037681,2]
[312437694,1705876244236,-500.0,0.00037681,2]
[312437695,1705876244246,-500.0,0.00037681,2]
[312437696,1705876244254,-500.0,0.00037681,2]
[312437697,1705876244265,-500.0,0.00037681,2]
[312437698,1705876244274,-500.0,0.00037681,2]
[312437699,1705876244284,-500.0,0.00037681,2]
[312437700,1705876244293,-500.0,0.00037681,2]
[312437701,1705876244302,-500.0,0.00037681,2]
[312437702,1705876244312,-10000.0,0.00037681,3]
[312437703,1705876244322,-5559.17420608,0.00037722,2]
[312437704,1705876244331,-3502.15421769,0.00037722,2]
[312437705,1705876244340,-1435.99213829,0.00037722,2]
[312437706,1705876244349,-151.81777713,0.00037752,2]
[312437707,1705876244359,-151.0122,0.00037798,8]
[312437708,1705876244368,-5312.13,0.00037808,2]
[312437709,1705876244378,-152.12099228,0.00037875,2]
[312437710,1705876244387,-301.46565387,0.00037878,4]
[312437711,1705876244396,-150.0,0.00037899,2]
[312437712,1705876244406,-150.0,0.00037899,2]
[312437713,1705876244415,-500.0,0.000379,2]
[312437714,1705876244424,-500.0,0.000379,2]
[312437715,1705876244433,-500.0,0.000379,2]
[312437716,1705876244442,-500.0,0.000379,2]
[312437717,1705876244451,-500.0,0.000379,2]
[312437718,1705876244460,-500.0,0.000379,2]
[312437719,1705876244470,-500.0,0.000379,2]
[312437720,1705876244478,-500.0,0.000379,2]
[312437721,1705876244487,-500.0,0.000379,2]
[312437722,1705876244496,-500.0,0.000379,2]
[312437723,1705876244505,-500.0,0.000379,2]
[312437724,1705876244514,-500.0,0.000379,2]
[312437725,1705876244523,-200.0,0.000379,2]
[312437726,1705876244533,-172.72,0.000379,7]
[312437727,1705876244542,-160.78,0.000379,7]
[312437728,1705876244551,-671539.945417,0.000379,3]
[312437729,1705876244559,-5396.12308006,0.00037989,10]
[312437730,1705876244569,-100000.0,0.00038,8]
[312437731,1705876244578,-4705.0,0.00038,2]
[312437732,1705876244587,-297.48,0.00038031,2]
[312437733,1705876244596,-185.0,0.00038059,2]
[312437734,1705876244605,-143259.56047242,0.00038142,2]
[312437735,1705876244614,-151.0122,0.00038198,8]
[312437736,1705876244624,-518.75,0.000383,3]
[312437737,1705876244633,-518.75,0.000383,3]
[312437738,1705876244642,-518.75,0.000383,3]
[312437739,1705876244652,-518.75,0.000383,3]
[312437740,1705876244661,-518.75,0.000383,3]
[312437741,1705876244671,-518.75,0.000383,3]
[312437742,1705876244682,-518.75,0.000383,3]
[312437743,1705876244693,-518.75,0.000383,3]
[312437744,1705876244702,-518.75,0.000383,3]
[312437745,1705876244712,-518.75,0.000383,3]
[312437746,1705876244721,-518.75,0.000383,3]
[312437747,1705876244730,-518.75,0.000383,3]
[312437748,1705876244739,-518.75,0.000383,3]
[312437749,1705876244749,-518.75,0.000383,3]
[312437750,1705876244758,-518.75,0.000383,3]
[312437751,1705876244768,-518.75,0.000383,3]
[312437752,1705876244778,-518.75,0.000383,3]
[312437753,1705876244787,-518.75,0.000383,3]
[312437754,1705876244795,-518.75,0.000383,3]
[312437755,1705876244805,-518.75,0.000383,3]
[312437756,1705876244814,-22735.9795329,0.0003833,10]
[312437757,1705876244823,-153.84,0.00038356,2]
[312437758,1705876244832,-151.0122,0.00038498,8]
[312437759,1705876244841,-151.81777713,0.00038555,2]
[312437760,1705876244850,-150.0,0.0003859,7]
[312437761,1705876244860,-151.0122,0.00038798,8]
[312437762,1705876244869,-669.29047,0.000389,10]
[312437763,1705876244878,-281.99182628,0.0003898,2]
[312437764,1705876244887,-100000.0,0.00039,9]
[312437765,1705876244896,-1428.71461591,0.00039,2]